Cogmind - Beta 11 X9 @@@ ROGUE MODE // 2022.01.08 @ 20:42:59 // Winter2021/Sauler Player: Tone Result: Core destroyed Performance ------------- Evolutions (9) 4500 Regions Visited (26) 5200 Robots Destroyed (416) 2080 Value Destroyed (26685) 26685 Prototype IDs (74) 1480 Alien Tech Used (14) 2800 Bonus (41790) 41790 TOTAL SCORE: 84535 Bonus ------- High Alert Combat Kills 6841 Follower Combat Kills 1962 Network Hubs Disabled 400 Met Warlord at Base 500 MAIN.C Attacked Warlord 500 Warlord Defense Kill 440 Built Enhanced Grunts 300 Met R17 at Cetus 500 Used Core Reset Matrix 3000 Met R17 at Research 2000 Met Warlord at Research 2000 Invited to Help at Command 2000 Met Sigix 2000 Destroyed MAIN.C Guards 500 Met MAIN.C 5000 Destroyed MAIN.C Shell 5000 Destroyed MAIN.C 10000 Met Architect 300 Destroyed A8 300 Destroyed A6 400 Destroyed A5 500 Friendly Fire -2653 Cogmind --------- Core Integrity 0/1600 Matter 241/300 Energy 717/1175 System Corruption 12% Temperature Cool (0) Movement Walking (260) Ox2 Location -1/Access_0 Parts ------- > --- POWER (2) -------- Antimatter Reactor Quantum Reactor > --- PROPULSION (8) --- High-density Centrium Leg High-density Centrium Leg High-density Centrium Leg > --- UTILITY (13) ----- Huge Storage Unit Experimental Energy Well Experimental Targeting Computer Experimental Targeting Computer Experimental Armor Integrity Analyzer Experimental Core Shielding SHELL Armor Microwarp Drive > --- WEAPON (3) ------- Potential Cannon Hypervelocity Linear Accelerator > --- INVENTORY (25) --- Desublimator Advanced Cooling System Advanced Coolant Injector Advanced Energy Well (160) Experimental Energy Well (0) Experimental Matter Compressor (71) Quantum Capacitor Propulsion Shielding Advanced Focal Shield AEGIS Remote Shield Long-range Tractor Beam Advanced Drone Bay (2/2) Hypervelocity Linear Accelerator Peak State ------------ > --- POWER ------------ Vortex Chain Reactor > --- PROPULSION ------- Advanced Medium Treads Megatreads Experimental Biometal Medium Treads > --- UTILITY ---------- Experimental Cooling System Huge Storage Unit Spectral Analyzer Experimental Targeting Computer Experimental Targeting Computer Experimental Target Analyzer Experimental Armor Integrity Analyzer SHELL Armor AEGIS Remote Shield Matter Drive > --- WEAPON ----------- Multirail Multirail Multirail > --- INVENTORY -------- High-density Centrium Leg High-density Centrium Leg High-density Centrium Leg Experimental Biometal Leg Experimental Biometal Leg Advanced Cooling System Advanced Coolant Injector Experimental Energy Well Experimental Energy Well Experimental Matter Compressor Quantum Capacitor Propulsion Shielding Advanced Focal Shield AEGIS Remote Shield Long-range Tractor Beam Advanced Drone Bay Microwarp Drive Compact HERF Cannon Improved Potential Cannon [Rating: 260] Favorites ----------- Power Reinforced Quantum Reactor Engine Light Deuterium Engine Power Core Neutrino Core Reactor Reinforced Quantum Reactor Propulsion Advanced Medium Treads Treads Advanced Medium Treads Leg Enhanced Biometal Leg Wheel Compact Wheel Hover Unit Improved Hover Unit Flight Unit Cooled VTOL Module Utility Experimental Targeting Computer Device Experimental Cooling System Storage High-capacity Storage Unit Processor Experimental Targeting Computer Hackware Hacking Suite Protection SHELL Armor Artifact Matter Drive Weapon Multirail Energy Gun Gamma Rifle Energy Cannon Enhanced Nova Cannon Ballistic Gun Multirail Ballistic Cannon Tri-rail Accelerator Launcher Thermoblaster Special Weapon Mining Laser Impact Weapon Heavy Hammer Slashing Weapon Ripper Piercing Weapon Vortex Lance Special Melee Weapon Dirty Datajack Build | -11 -10 -9 -8 -7 -7 -6 -5 -5 -5 -5 -5 -4 -4 -4 -4 -4 -4 -3 -3 -3 -3 -2 -2 -1 -1 -1 ------- Run | Scr Mat Mat Mat Fac Sto Fac Fac Ext Cet Arc Hub Fac Was Fac Upp Upp War Pro Res Qua Sec Res Tes Acc Com Ac0 Slots Evolved 18 | . . 2 2 2 . 2 2 . . . . 2 . . . . . . 2 . . 2 . 2 . . Power 1 | . . . . . . 1 . . . . . . . . . . . . . . . . . . . . Propulsion 5 | . . 1 1 . . . 1 . . . . 1 . . . . . . . . . . . 1 . . Utility 11 | . . . 1 2 . 1 1 . . . . 1 . . . . . . 2 . . 2 . 1 . . Weapon 1 | . . 1 . . . . . . . . . . . . . . . . . . . . . . . . Parts Attached 861 | 1 6 13 37 9 17 8 15 23 14 8 36 14 10 7 9 9 20 1 43 70 72 18 58 74 192 77 Power 50 | . 1 1 3 1 3 3 1 4 2 . 2 . . . 2 1 1 . . 5 10 . . 4 3 3 Engine 10 | . 1 1 2 1 2 1 1 1 . . . . . . . . . . . . . . . . . . Core 10 | . . . 1 . 1 2 . 3 . . . . . . 2 1 . . . . . . . . . . Reactor 30 | . . . . . . . . . 2 . 2 . . . . . 1 . . 5 10 . . 4 3 3 Propulsion 91 | 1 2 1 13 2 4 . 2 5 2 . 8 2 . . . . 4 . 4 10 7 6 2 2 5 9 Treads 46 | . 2 . 13 2 . . . 3 2 . 1 . . . . . . . 1 3 6 6 2 2 3 . Leg 37 | . . 1 . . . . . 1 . . 7 2 . . . . 4 . 3 7 1 . . . 2 9 Wheel 2 | 1 . . . . . . . 1 . . . . . . . . . . . . . . . . . . Hover 1 | . . . . . . . 1 . . . . . . . . . . . . . . . . . . . Flight 5 | . . . . . 4 . 1 . . . . . . . . . . . . . . . . . . . Utility 467 | . 1 2 6 4 3 . 9 4 7 6 18 6 6 6 2 2 8 . 21 30 40 9 45 45 147 40 Device 269 | . 1 1 . 2 1 . 4 1 2 2 10 2 2 5 1 2 1 . 11 19 31 4 31 29 94 13 Storage 48 | . . 1 . . . . 2 . . 1 1 1 . . . . . . 2 2 3 2 6 2 15 10 Processor 37 | . . . . 2 . . 3 1 . . 2 1 1 1 . . 1 . . 4 3 . 1 2 15 . Hackware 6 | . . . . . . . . . . . . 1 . . . . . . 4 . . . . 1 . . Protection 67 | . . . 6 . 2 . . 2 5 3 5 1 3 . 1 . 6 . 4 3 . 3 3 4 13 3 Artifact 40 | . . . . . . . . . . . . . . . . . . . . 2 3 . 4 7 10 14 Weapon 253 | . 2 9 15 2 7 5 3 10 3 2 8 6 4 1 5 6 7 1 18 25 15 3 11 23 37 25 Energy Gun 10 | . . . 1 . 1 . 1 1 . . . . . . . . 1 . . 3 1 . . . 1 . Energy Cannon 94 | . . . 1 . 4 4 1 4 1 . 3 3 2 1 3 3 1 1 8 8 2 . 6 9 20 9 Ballistic Gun 103 | . . 7 6 2 1 . 1 4 2 2 5 3 1 . 2 2 2 . 7 11 5 2 1 7 15 15 Ballistic Cannon 22 | . 1 . 5 . . . . . . . . . 1 . . . . . . . 4 1 3 5 1 1 Launcher 15 | . . . 2 . 1 1 . . . . . . . . . . 2 . 3 3 . . 1 2 . . Special Weapon 1 | . 1 . . . . . . . . . . . . . . . . . . . . . . . . . Impact Weapon 3 | . . 2 . . . . . . . . . . . . . 1 . . . . . . . . . . Slashing Weapon 1 | . . . . . . . . 1 . . . . . . . . . . . . . . . . . . Piercing Weapon 1 | . . . . . . . . . . . . . . . . . 1 . . . . . . . . . Special Melee Weapon 3 | . . . . . . . . . . . . . . . . . . . . . 3 . . . . . Unidentified Prototypes 90 | . . . 2 . 4 . 1 . 4 1 6 . . 1 . . 5 . 2 15 6 2 11 1 19 10 Corrupted Parts 8 | . . . . . . . . . . 2 1 . . . . . . . 1 . 3 . . . . 1 System Corruption 55 | . . . . . . . . . . 15 3 . . . . . . . 10 . 21 . . . . 6 Parts Lost 71 | . 1 . 5 . 6 4 . 1 . . 7 2 . 1 1 . . . 5 14 3 . . . 2 19 Power 9 | . . . 1 . . 2 . . . . 1 . . . 1 . . . . 2 . . . . . 2 Propulsion 23 | . 1 . 3 . 4 . . 1 . . 1 . . . . . . . 1 4 1 . . . . 7 Utility 22 | . . . . . 2 1 . . . . 4 1 . . . . . . 3 4 . . . . 2 5 Weapon 17 | . . . 1 . . 1 . . . . 1 1 . 1 . . . . 1 4 2 . . . . 5 Highest Loss Streak 6 | . 1 . 2 . 6 2 . 1 . . 3 1 . 1 1 . . . 2 4 2 . . . 1 6 Average Slot Usage (%) 75 | . 87 99 93 98 91 52 73 93 88 87 87 92 99 93 94 95 92 94 92 87 90 90 74 69 64 65 Reactor 5 | . . . . . . . . . 5 11 10 10 10 10 5 5 5 5 4 6 8 8 8 6 4 3 Treads 10 | . 10 22 32 28 24 . . 11 16 17 13 . . . . . . . . 2 17 22 7 11 10 5 Leg 5 | . 4 11 1 . . . . 3 . . 5 26 31 31 31 31 30 31 26 21 8 . . . . 12 Device 9 | . 3 10 8 14 11 6 9 8 1 7 17 10 9 11 12 10 3 5 15 8 9 15 12 9 8 6 Storage 4 | . 14 11 9 7 6 . 1 5 5 5 5 5 5 5 5 5 5 5 5 4 4 4 6 3 3 6 Processor 18 | . . . . 7 9 6 16 17 15 11 6 11 15 13 10 10 12 15 14 21 26 25 26 22 19 15 Protection 4 | . . . 5 7 7 . . 7 16 14 9 8 5 5 7 10 11 10 5 1 . 3 3 3 3 4 Energy Cannon 2 | . . . 2 7 10 4 5 9 . . 1 3 4 4 2 5 4 4 7 3 2 . 3 4 2 2 Ballistic Gun 6 | . 23 19 12 15 8 . 3 3 16 17 13 9 9 5 9 6 6 . 4 5 4 4 . 2 6 3 Naked Turns . | . . . . . . . . . . . . . . . . . . . . . . . . . . . Heaviest Build 203 | 11 15 35 55 51 60 18 34 75 90 90 96 95 98 106 92 99 114 101 114 141 142 125 133 184 197 203 Greatest Support 690 | 20 40 40 80 80 80 28 43 125 183 183 187 175 150 150 150 150 175 170 170 165 178 650 650 680 690 690 Greatest Overweight (x) 3 | 1 1 . 1 . 1 . 3 2 . . 1 . . . . . . . . 1 1 . . . . 2 Average Overweight (x) . | . . . . . . . . . . . . . . . . . . . . . . . . . . . Largest Inventory Capacity 25 | 8 8 15 15 15 15 5 10 10 10 10 10 15 15 15 15 15 15 15 15 20 20 20 20 20 25 25 Average Capacity 19 | 8 8 8 15 15 13 5 6 10 10 10 10 10 15 15 15 15 15 15 15 16 20 20 20 20 22 25 Most Carried 25 | 7 8 8 15 14 15 5 10 10 10 10 10 10 15 15 15 15 15 15 15 20 20 20 20 20 25 25 Average Carried 17 | 6 7 7 13 12 13 3 6 9 9 9 9 9 10 13 14 14 14 15 14 15 19 19 19 19 20 19 Final Capacity 25 | 8 8 15 15 15 5 5 10 10 10 10 10 15 15 15 15 15 15 15 15 20 20 20 20 20 25 25 Final Carried 25 | 7 7 8 14 14 3 4 10 10 10 10 10 9 15 14 15 15 15 15 15 19 20 20 20 20 25 15 Class Distribution -------------------- 33% | Scavenger-Gunner 32% | Scavenger-Mutant 13% | Alien-Mutant 7% | Alien-Gunner 3% | Scavenger-Tank 3% | Scavenger-Skirmisher Dominant Class ---------------- Mutant | -10/Materials Skirmisher | -9/Materials Scavenger-Tank | -8/Materials Scavenger-Skirmisher | -7/Factory Scavenger-Mutant | -7/Storage Sprinter | -6/Factory Scavenger-Sprinter | -5/Factory Scavenger-Mutant | -5/Extension Scavenger-Tank | -5/Cetus Scavenger-Mutant | -5/Archives Scavenger-Gunner | -5/Hub_04(d) Scavenger-Mutant | -4/Factory Scavenger-Mutant | -4/Waste Scavenger-Gunner | -4/Factory Scavenger-Mutant | -4/Upper Caves Scavenger-Mutant | -4/Upper Caves Scavenger-Mutant | -4/Warlord Scavenger-Mutant | -3/Proximity Caves Scavenger-Mutant | -3/Research Scavenger-Mutant | -3/Quarantine Scavenger-Mutant | -3/Section 7 Scavenger-Gunner | -2/Research Scavenger-Mutant | -2/Testing Scavenger-Mutant | -1/Access Scavenger-Gunner | -1/Command Alien-Mutant | -1/Access_0 Resources | -11 -10 -9 -8 -7 -7 -6 -5 -5 -5 -5 -5 -4 -4 -4 -4 -4 -4 -3 -3 -3 -3 -2 -2 -1 -1 -1 ----------- Run | Scr Mat Mat Mat Fac Sto Fac Fac Ext Cet Arc Hub Fac Was Fac Upp Upp War Pro Res Qua Sec Res Tes Acc Com Ac0 Matter Collected 19117 | 234 66 160 1148 121 178 28 396 571 383 447 990 314 367 75 198 141 223 10 625 1975 1608 474 1061 1642 4721 961 Remotely 475 | . . . . . . . . . . . . . . . . . . . . . . . 61 . . 414 Salvage Created 25745 | 26 222 156 1223 169 304 26 301 1032 416 618 1093 768 321 75 448 150 107 206 2000 3721 2183 78 1143 3190 4734 1035 Parts 1151 | 4 15 6 59 7 16 5 11 38 20 42 56 30 10 3 16 2 4 3 138 151 68 2 62 169 174 40 Haulers Intercepted 11 | . . . 5 . . . . 2 . . . 1 . . . . . . . 1 1 . 1 . . . Recyclers Shooed 13 | . . . 5 . . 1 . 1 . . . 1 . . . . . . . 1 . . . 2 2 . Parts Field Recycled . | . . . . . . . . . . . . . . . . . . . . . . . . . . . Retrieved Matter . | . . . . . . . . . . . . . . . . . . . . . . . . . . . Parts Self-Destructed 84 | . . . . . . . . . . . . . . . 9 . 72 3 . . . . . . . . Prevented 16 | . . . . . . . . . . . . . . . 8 2 6 . . . . . . . . . Kills | -11 -10 -9 -8 -7 -7 -6 -5 -5 -5 -5 -5 -4 -4 -4 -4 -4 -4 -3 -3 -3 -3 -2 -2 -1 -1 -1 ------- Run | Scr Mat Mat Mat Fac Sto Fac Fac Ext Cet Arc Hub Fac Was Fac Upp Upp War Pro Res Qua Sec Res Tes Acc Com Ac0 Combat Hostiles Destroyed 324 | . 7 3 21 2 6 3 . 8 6 2 12 11 1 1 5 2 2 5 37 42 23 1 19 43 47 15 Melee 1 | . . . . . . . . . . . . . . . . . . . . 1 . . . . . . Guns 124 | . 4 2 5 2 3 . . 2 6 2 9 6 1 . . . . . . 22 9 . 1 17 22 11 Cannons 87 | . 3 1 12 . 2 . . 5 . . . 5 . . 4 1 . . 7 2 4 1 17 14 9 . AOE 59 | . . . 4 . 1 3 . . . . 1 . . . . . 1 5 24 1 . . . 8 9 2 Classes Destroyed 29 | 1 2 2 5 1 . 1 . 1 . 1 2 1 2 . 1 . 1 . . 4 1 . . 1 2 . Worker 7 | . . . . . . . . . . . 2 . . . . . . . . . . . . 1 4 . Builder 11 | . . . 1 . 1 . . . . . 1 1 . . . . . . 3 . 1 . 1 2 . . Tunneler 3 | 1 . . . . . . 1 1 . . . . . . . . . . . . . . . . . . Hauler 11 | . . . 5 . . . . 2 . . . 1 . . . . . . . 1 1 . 1 . . . Recycler 13 | . . . 5 1 . . 2 2 . . . . . . . . . . . . 1 . . 1 1 . Carrier 1 | . . . . . . . . . . . . . . . . . . . . . . . . . 1 . Mechanic 3 | . . . . . . . . . . . . . . . . . . . . . . . . . 3 . Operator 13 | . . . . . . . . . . 9 . 1 . . . . . . . . 2 . 1 . . . Watcher 24 | . . . 2 . . . 1 . 1 . 1 3 . . . . . . . 3 4 1 3 3 2 . Swarmer 44 | . 1 . 4 . 1 . . 2 . . . 5 . . . . . 2 21 . . . . 8 . . Cutter 3 | . . . . . . 3 . . . . . . . . . . . . . . . . . . . . Saboteur 2 | . . . . . . . . . . . . . . . . . . . . . . . . 1 1 . Grunt 91 | . 6 1 9 . 3 . . 1 . . 3 . . . 3 . . 3 6 17 11 . 1 9 18 . Brawler 6 | . . 1 . . . . . . . . . . . . . . . . . . 2 . . . 3 . Duelist 4 | . . . . 1 . . . . . . . . . . . . . . . . . . . 2 1 . Protector 3 | . . . . . . . . . . . . . . . . . . . . 2 . . . . 1 . Researcher 1 | . . . . . . . . . . . . . . . . . . . . 1 . . . . . . Sentry 29 | . . 1 7 . 2 . . 4 . 2 1 1 . 1 . . . . 1 7 2 . . . . . Demolisher 1 | . . . . . . . . . . . . . . . . . . . . . . 1 . . . . Specialist 3 | . . . . . . . . . . . . . . . . . . . . 3 . . . . . . Hunter 28 | . . . 1 1 . . . . 2 . 1 . . . 2 2 . . 4 5 . . . 8 2 . Programmer 59 | . . . . . . . . . . . . 4 . . . . . . 3 5 4 . 18 12 13 . Heavy 2 | . . . . . . . . . . . 1 1 . . . . . . . . . . . . . . Behemoth 5 | . . . . . . . . 1 . . . . . . . . . . . . . . . 3 1 . Compactor 1 | . . . . . . . . . . . . . 1 . . . . . . . . . . . . . Cetus Guard 4 | . . . . . . . . . 4 . . . . . . . . . . . . . . . . . S7 Guard 2 | . . . . . . . . . . . . . . . . . . . . . 2 . . . . . M Guard 2 | . . . . . . . . . . . . . . . . . . . . . . . . . 2 . Enhanced Grunt 9 | . . . . . . . . . . 1 . . . . . . . . . . . . . . . 8 Enhanced Hunter 4 | . . . . . . . . . . . . . . . . . . . . . . . . . . 4 Lightning 9 | . . . . . . . . . . . 6 . . . . . . . . 3 . . . . . . Combat Programmer 2 | . . . . . . . . . . . . . . . . . . . . . . . . . 2 . Striker 4 | . . . . . . . . . . . . . . . . . 2 . 2 . . . . . . . Executioner 2 | . . . . . . . . . . . . . . . . . . . . . 2 . . . . . Alpha 7 2 | . . . . . . . . . . . . . . . . . . . . 1 . . . . 1 . Martyr 2 | . . . . . . . . . . . . . 2 . . . . . . . . . . . . . Mutant 1 | . . . . . . . . . . . . . . . 1 . . . . . . . . . . . Best Kill Streak 27 | 1 2 2 5 2 6 3 2 2 3 4 3 5 1 1 3 2 2 3 27 8 5 1 3 6 15 4 Combat Bots Only 25 | . 2 2 5 1 5 3 . 2 2 1 3 5 1 1 3 2 2 3 25 7 5 1 3 5 12 4 Max Kills in Single Turn 13 | 1 1 1 3 2 2 1 1 1 2 1 1 2 1 1 1 1 1 2 13 2 2 1 2 5 4 1 Gunslinging 1 | . . . . . . . . . . . . . . . . . . . . 1 . . . . 1 . Exploded 11 | . . . 3 . 1 1 . . . . 1 . . . . . 1 2 11 1 . . . 4 3 1 Melee 1 | . . . . . . . . . . . . . . . . . . . . 1 . . . . . . Uniques/NPCs Destroyed 7 | . . . . . . . . . 1 . . . . . . . . . 1 . . . . . 2 3 A7 (-5/Cetus) Revision 17++ (-3/Research) MAIN.C Shell (-1/Command) MAIN.C (-1/Command) A8 (-1/Access_0) A6 (-1/Access_0) A5 (-1/Access_0) Combat | -11 -10 -9 -8 -7 -7 -6 -5 -5 -5 -5 -5 -4 -4 -4 -4 -4 -4 -3 -3 -3 -3 -2 -2 -1 -1 -1 -------- Run | Scr Mat Mat Mat Fac Sto Fac Fac Ext Cet Arc Hub Fac Was Fac Upp Upp War Pro Res Qua Sec Res Tes Acc Com Ac0 Damage Taken 38032 | . 350 117 1700 339 1022 715 . 529 273 178 3799 1111 . 299 137 109 300 243 1741 4780 1595 443 334 3174 4266 10478 Core 4079 | . 62 . 106 59 239 178 . 16 . 30 135 24 . . 22 . . . 225 647 250 20 91 230 306 1439 Absorbed by Shields 9940 | . . . . . . . . 210 26 . 75 . . . . . 29 . . 398 217 459 267 2401 2298 3560 Reduced by Siege Mode 1552 | . . . . . . . . . 6 . 255 . . . . . . . . 17 . 68 . 275 757 174 Redirected to Core 405 | . . . . . . . . . . . . . . . . . . . . 405 . . . . . . Core Remaining (%) 76 | 100 75 100 80 . 57 79 . . . . 81 . . . . . . 96 . . 6 . 92 . . . Volleys Fired 1508 | 7 21 7 88 7 19 41 25 49 15 61 72 44 10 2 18 13 11 29 73 139 103 14 128 160 259 93 Largest 3 | 2 2 3 3 3 3 1 2 3 3 3 3 3 3 1 2 1 2 2 3 3 3 3 2 3 3 3 Hottest 520 | 40 100 75 125 131 120 90 60 153 103 103 160 160 160 70 120 120 260 520 346 225 167 167 180 320 210 245 Shots Fired 2485 | 14 41 18 208 21 38 41 27 98 45 75 186 78 18 2 24 13 13 32 89 274 143 26 149 272 396 144 Gun 1280 | 14 34 14 97 14 9 . . 30 39 75 172 50 14 . 12 . 3 . 3 191 62 14 29 110 215 79 Cannon 1133 | . 6 4 108 7 27 36 27 68 6 . 14 28 4 2 12 13 5 23 75 50 81 12 120 159 181 65 Launcher 71 | . . . 3 . 2 5 . . . . . . . . . . 5 9 11 33 . . . 3 . . Special 1 | . 1 . . . . . . . . . . . . . . . . . . . . . . . . . Kinetic 1409 | 14 40 18 198 14 9 . . 21 39 75 172 50 14 . 12 . 3 . 3 129 77 26 73 127 215 80 Thermal 834 | . 1 . 7 7 27 36 27 62 6 . 7 12 4 . 6 7 10 32 61 38 25 . 76 142 180 61 Explosive 13 | . . . 3 . 2 5 . . . . . . . . . . . . . . . . . 3 . . Electromagnetic 229 | . . . . . . . . 15 . . 7 16 . 2 6 6 . . 25 107 41 . . . 1 3 Robot Hit Streak 57 | 2 9 4 19 7 8 4 11 28 9 15 11 15 9 11 14 2 4 3 11 37 29 11 37 41 57 35 Robot Miss Streak 5 | 1 1 1 4 3 2 4 1 2 3 3 5 1 1 . 1 2 1 1 2 4 2 2 2 2 2 5 Penetration Max 2 | . . . . 1 1 . . 1 1 1 1 1 1 1 1 . . . . 2 2 1 . 1 1 2 Secondary Targets 20 | . . . . . . . . . . 1 4 1 . . . . . . . 5 . . . . 7 2 Max Gunslinging Chain 2 | . . . . . . . . . . 1 1 1 . . . . . . . 1 . . . . 2 1 Capacitor 25 | . . . . . . . . . . . . . . . . . . . . . . . . . 1 24 Shots Hit Robots 1697 | 8 28 12 132 15 19 5 11 74 34 55 121 55 13 2 20 3 5 5 33 192 103 18 101 194 323 116 Core Hits 1148 | 3 14 6 57 10 17 6 6 25 19 26 43 22 4 1 8 1 4 12 121 137 113 9 40 131 209 104 Critical Kills 80 | . . . . . . . . 2 3 12 7 2 2 . . . . . 2 8 10 . 2 10 12 8 Critical Parts Destroyed 130 | . . . . . 1 . . 2 4 11 16 6 1 . . . . . . 15 13 2 4 14 20 21 Critical Strikes 301 | . . . 4 . 1 . . 5 8 25 23 12 3 1 1 1 . . 5 36 41 6 27 29 43 30 Meltdown 14 | . . . . . . . . . . . . . . . . . . . 2 . . . 1 4 6 1 Destroy 216 | . . . . . 1 . . 4 8 25 23 8 3 . . . . . . 23 26 2 7 20 37 29 Blast 32 | . . . 4 . . . . . . . . . . . . . . . . . . 4 19 5 . . Corrupt 39 | . . . . . . . . 1 . . . 4 . 1 1 1 . . 3 13 15 . . . . . Melee Attacks 12 | . . 5 . . . . . 1 . . . . . . . . 1 . . . 5 . . . . . Impact 5 | . . 5 . . . . . . . . . . . . . . . . . . . . . . . . Slashing 1 | . . . . . . . . 1 . . . . . . . . . . . . . . . . . . Piercing 5 | . . . . . . . . . . . . . . . . . . . . . 5 . . . . . Entropic 1 | . . . . . . . . . . . . . . . . . 1 . . . . . . . . . Sneak Attacks 1 | . . . . . . . . . . . . . . . . . . . . . 1 . . . . . Combat Hostiles 1 | . . . . . . . . . . . . . . . . . . . . . 1 . . . . . Follow-up Attacks . | . . . . . . . . . . . . . . . . . . . . . . . . . . . Damage Inflicted 79541 | 77 322 127 3176 412 689 306 293 2070 815 565 2718 2160 356 180 896 214 340 774 3692 6848 4394 830 5162 8714 18914 14497 Guns 28535 | 77 211 93 969 287 221 . . 579 679 565 2287 1117 317 . 376 . 50 . . 4612 1894 262 801 3404 7080 2654 Cannons 32742 | . 111 34 1768 125 326 107 293 1474 136 . 404 960 39 172 520 214 42 . 1688 932 1960 559 4294 3943 7055 5586 Explosions 17417 | . . . 390 . 142 197 . . . . 16 83 . . . . 248 774 2004 1136 116 . . 1350 4779 6182 Melee 13 | . . . . . . . . . . . . . . . . . . . . . 13 . . . . . Ramming 834 | . . . 49 . . 2 . 17 . . 11 . . 8 . . . . . 168 411 9 67 17 . 75 Kinetic 33387 | 77 322 127 2662 287 221 . . 394 679 565 2287 1117 317 . 376 . 50 . . 3034 2107 821 3679 4531 7080 2654 Thermal 33909 | . . . 75 125 326 107 293 1344 136 . 113 276 39 . 159 . 290 774 1490 584 46 . 1416 2816 11834 11666 Explosive 2657 | . . . 390 . 142 197 . . . . . . . . . . . . 508 . 70 . . 1350 . . Electromagnetic 8741 | . . . . . . . . 315 . . 307 767 . 172 361 214 . . 1694 3062 1747 . . . . 102 Impact . | . . . . . . . . . . . . . . . . . . . . . . . . . . . Slashing . | . . . . . . . . . . . . . . . . . . . . . . . . . . . Piercing 13 | . . . . . . . . . . . . . . . . . . . . . 13 . . . . . Highest Corruption 43 | . . . 1 . . . . 1 1 11 43 3 3 1 . . . . 10 9 23 . 3 5 13 12 Average Corruption 4 | . . . 1 . . . . 1 1 3 17 1 2 1 . . . . 5 6 13 . 1 3 3 6 Corruption Purged 26 | . . . . . . . . . . 12 . . 2 1 . . . . 9 . . . . . 2 . Effects 343 | . . . 1 . . . . . 2 10 33 1 6 1 . . . . 9 48 69 . 11 10 120 22 Message Errors 85 | . . . 1 . . . . . 1 1 9 . 1 1 . . . . 2 9 22 . 1 3 32 2 Matter Fused 78 | . . . . . . . . . . 1 5 . 5 . . . . . 1 16 21 . 2 4 17 6 Heat Flow Errors 37 | . . . . . . . . . . 1 4 1 . . . . . . . 5 4 . 2 1 15 4 Energy Discharges 54 | . . . . . . . . . 1 4 2 . . . . . . . 3 4 8 . 3 2 25 2 Parts Rejected 3 | . . . . . . . . . . . . . . . . . . . . 2 . . . . . 1 Data Loss (minor) 44 | . . . . . . . . . . 3 3 . . . . . . . 2 6 10 . 2 . 18 . Data Loss (major) 8 | . . . . . . . . . . . 1 . . . . . . . . 1 . . . . 4 2 Misfires 5 | . . . . . . . . . . . 1 . . . . . . . . 1 2 . . . 1 . Alerts 4 | . . . . . . . . . . . . . . . . . . . . . 1 . . . 1 2 Misdirections 3 | . . . . . . . . . . . 2 . . . . . . . . . . . . . . 1 Weapon Failures 22 | . . . . . . . . . . . 6 . . . . . . . 1 4 1 . 1 . 7 2 Overload Shots 4 | . . . . . 1 2 . 1 . . . . . . . . . . . . . . . . . . Overflow Damage 2926 | . . . 64 . . 5 28 43 . . 30 128 . . 15 . . 80 121 . 160 25 203 350 896 778 Projectiles 2378 | . . . 51 . . . 28 43 . . 30 111 . . 15 . . . 71 . 160 25 203 223 724 694 Explosions 548 | . . . 13 . . 5 . . . . . 17 . . . . . 80 50 . . . . 127 172 84 Melee . | . . . . . . . . . . . . . . . . . . . . . . . . . . . Knockbacks 77 | . 1 . 13 . . . . . . . . . . . . . . . . 2 5 3 40 13 . . Impact 8 | . . . . . . . . . . . . . . . . . . . . 2 5 . 1 . . . Kinetic 68 | . 1 . 12 . . . . . . . . . . . . . . . . . . 3 39 13 . . Secondary 1 | . . . 1 . . . . . . . . . . . . . . . . . . . . . . . Self-Inflicted Damage 926 | . . . 27 . 58 118 . 1 . . 97 71 . . . . . . 109 117 11 . . . . 317 Shots 70 | . . . 1 . 2 3 . . . . 1 1 . . . . . . 12 45 1 . . . . 4 Rammed 85 | . . . 7 . . 1 . 3 . . 1 . . . . . . . . . 60 1 10 2 . . Targets Rammed 109 | . . . 9 . . 1 . 3 . . 1 . . 1 . . . . . 20 61 1 10 2 . . Kicked 22 | . . . . . . . . . . . . . . 1 . . . . . 20 1 . . . . . Crushed 2 | . . . 2 . . . . . . . . . . . . . . . . . . . . . . . Highest Temperature 391 | . 20 39 349 231 126 44 54 391 338 148 280 217 27 41 256 265 305 200 360 297 287 . 250 356 356 190 Average Temperature 34 | . 9 16 75 103 55 20 18 138 147 19 80 43 7 23 114 114 102 61 50 93 107 . 12 30 25 48 Received Heat Transfer 3010 | . 111 57 549 . 468 81 . 61 24 9 318 9 . 18 . . 24 21 198 366 193 8 . 162 138 195 Effects 15 | . . . . . . . . . 1 . . . . . . . . . . 3 1 . 4 . 6 . Energy Bleed 3 | . . . . . . . . . 1 . . . . . . . . . . . 1 . . . 1 . Interference 12 | . . . . . . . . . . . . . . . . . . . . 3 . . 4 . 5 . Siege Activations 28 | . . . . . . . . . 2 . 3 . . . . . . . . 1 . 1 . 12 8 1 Total Turns 829 | . . . . . . . . . 18 . 131 . . . . . . . . 22 . 11 . 256 336 55 Longest Duration 94 | . . . . . . . . . 12 . 94 . . . . . . . . 22 . 11 . 49 87 55 Robots Corrupted 40 | . . . . . . . . . . . 2 2 . 1 1 1 . . 4 16 12 . . . . 1 Combat Hostiles 36 | . . . . . . . . . . . 2 . . 1 1 1 . . 4 16 10 . . . . 1 Parts Fried 91 | . . . . . . . . 5 . . 2 7 . 1 4 2 . . 8 32 26 . . . . 4 Impact Corruptions . | . . . . . . . . . . . . . . . . . . . . . . . . . . . Robots Melted 17 | . . . . . . . . 1 . . . . . . . . 1 . 2 . . . 1 4 7 1 Combat Hostiles 17 | . . . . . . . . 1 . . . . . . . . 1 . 2 . . . 1 4 7 1 Parts Melted 46 | . . . . . . . 1 2 . . . 4 . . . 1 2 2 5 1 . . 3 17 7 1 Heat Transferred 19091 | . . . 111 185 444 148 407 1618 185 . 75 175 25 . 111 . 437 1120 936 359 50 . 1036 2183 5532 3954 Parts Sabotaged 3 | . . . . . . . . . . . . . . . . . 3 . . . . . . . . . Parts Stolen . | . . . . . . . . . . . . . . . . . . . . . . . . . . . Parts Stripped . | . . . . . . . . . . . . . . . . . . . . . . . . . . . Power Chain Reactions 13 | . . . . . . . . . . . . 1 . . . . . . 9 2 1 . . . . . Missiles Intercepted . | . . . . . . . . . . . . . . . . . . . . . . . . . . . Alert | -11 -10 -9 -8 -7 -7 -6 -5 -5 -5 -5 -5 -4 -4 -4 -4 -4 -4 -3 -3 -3 -3 -2 -2 -1 -1 -1 ------- Run | Scr Mat Mat Mat Fac Sto Fac Fac Ext Cet Arc Hub Fac Was Fac Upp Upp War Pro Res Qua Sec Res Tes Acc Com Ac0 Peak Influence 1686 | 5 217 198 726 393 466 807 541 674 799 481 774 597 167 371 . . . . 918 1273 612 318 326 1296 1686 . Initial 788 | . 3 91 83 268 178 211 397 264 322 263 98 378 163 . . . . . 60 436 473 309 . 195 788 . Average 457 | 4 76 150 413 314 254 543 469 411 567 410 322 259 152 105 . . . . 367 856 443 160 114 539 1293 . Maximum Alert Level 5 | . 1 . 3 1 2 3 2 2 3 2 3 2 . 1 . . . . 3 4 2 1 1 4 5 . Low Security (%) 15 | 100 91 100 13 . 26 . . . . . 22 47 100 91 . . . . 34 . 9 61 79 21 . . Level 1 12 | . 8 . 39 100 69 24 23 59 9 30 49 30 . 8 . . . . 37 . 10 38 20 25 . . Level 2 13 | . . . 41 . 4 43 76 40 65 69 24 22 . . . . . . . 28 79 . . 20 . . Level 3 5 | . . . 5 . . 31 . . 25 . 3 . . . . . . . 27 42 . . . 21 1 . Level 4 5 | . . . . . . . . . . . . . . . . . . . . 28 . . . 11 6 . Level 5 47 | . . . . . . . . . . . . . . . . . . . . . . . . . 92 . High Security . | . . . . . . . . . . . . . . . . . . . . . . . . . . . Max Security . | . . . . . . . . . . . . . . . . . . . . . . . . . . . Squads Dispatched 85 | . 5 1 7 1 1 7 . 1 . . 4 3 . 1 . . . . 6 12 7 4 8 8 9 . Investigation 13 | . 4 . 3 . 1 . . . . . 1 . . . . . . . 2 2 . . . . . . Extermination 21 | . . . . . . . . . . . . 1 . . . . . . . 2 3 . 7 4 4 . Reinforcement 28 | . 1 1 4 . . 4 . 1 . . 3 1 . 1 . . . . 4 2 . 4 1 1 . . Assault 15 | . . . . . . 2 . . . . . 1 . . . . . . . 3 2 . . 2 5 . Garrison 8 | . . . . 1 . 1 . . . . . . . . . . . . . 3 2 . . 1 . . Intercept . | . . . . . . . . . . . . . . . . . . . . . . . . . . . Construction Impeded 1 | . . . . . . . . . . . 1 . . . . . . . . . . . . . . . Haulers Reinforced 4 | . . . . . . . . . . . . . . . . . . . 1 . . 2 . 1 . . Active Scanning Responses . | . . . . . . . . . . . . . . . . . . . . . . . . . . . Cargo Convoy Interrupts . | . . . . . . . . . . . . . . . . . . . . . . . . . . . Stealth | -11 -10 -9 -8 -7 -7 -6 -5 -5 -5 -5 -5 -4 -4 -4 -4 -4 -4 -3 -3 -3 -3 -2 -2 -1 -1 -1 --------- Run | Scr Mat Mat Mat Fac Sto Fac Fac Ext Cet Arc Hub Fac Was Fac Upp Upp War Pro Res Qua Sec Res Tes Acc Com Ac0 Distress Signals 53 | . 1 1 2 . . 1 . 3 2 . . . . 2 . . . . 1 3 2 2 . 4 29 . Communications Jammed . | . . . . . . . . . . . . . . . . . . . . . . . . . . . Distress Signals . | . . . . . . . . . . . . . . . . . . . . . . . . . . . Times Spotted 647 | . 15 5 34 4 17 22 4 27 15 21 31 24 5 9 5 2 36 6 53 61 51 14 24 55 62 45 Peak Tracking Total 31 | . 5 2 6 3 9 11 1 7 5 1 6 6 2 6 4 2 7 3 31 9 6 4 3 8 8 7 Tactical Retreats 30 | . . . . 1 1 3 . 1 . . 2 1 . . . . 1 . 2 7 3 2 . 2 4 . Traps | -11 -10 -9 -8 -7 -7 -6 -5 -5 -5 -5 -5 -4 -4 -4 -4 -4 -4 -3 -3 -3 -3 -2 -2 -1 -1 -1 ------- Run | Scr Mat Mat Mat Fac Sto Fac Fac Ext Cet Arc Hub Fac Was Fac Upp Upp War Pro Res Qua Sec Res Tes Acc Com Ac0 Traps Triggered 29 | . 2 . 2 . . 1 . 1 . . . 1 . 1 . . . . . 2 . . 1 . 18 . Indirectly . | . . . . . . . . . . . . . . . . . . . . . . . . . . . Trap Hack Attempts . | . . . . . . . . . . . . . . . . . . . . . . . . . . . Triggered . | . . . . . . . . . . . . . . . . . . . . . . . . . . . Disarmed . | . . . . . . . . . . . . . . . . . . . . . . . . . . . Reprogrammed . | . . . . . . . . . . . . . . . . . . . . . . . . . . . Reused . | . . . . . . . . . . . . . . . . . . . . . . . . . . . Traps Extracted . | . . . . . . . . . . . . . . . . . . . . . . . . . . . Installed . | . . . . . . . . . . . . . . . . . . . . . . . . . . . Triggered 12 | . . . . . . . . . . . 1 . . . . . 7 . . . . . 2 . 2 . Machines | -11 -10 -9 -8 -7 -7 -6 -5 -5 -5 -5 -5 -4 -4 -4 -4 -4 -4 -3 -3 -3 -3 -2 -2 -1 -1 -1 ---------- Run | Scr Mat Mat Mat Fac Sto Fac Fac Ext Cet Arc Hub Fac Was Fac Upp Upp War Pro Res Qua Sec Res Tes Acc Com Ac0 Machines Disabled 89 | . . . 4 . 5 5 2 5 1 . 8 13 . 3 . . . . 3 10 12 1 11 2 3 1 Max in Single Turn 7 | . . . 1 . 1 1 1 1 1 . 7 2 . . . . . . 2 1 1 . 1 1 2 1 Garrison Access 13 | . . . . . . 2 . . . . 1 1 . . . . . . 3 1 1 1 1 2 . . Phase Generator 1 | . . . . . . . . . . . . . . . . . . . . . . . . . 1 . Network Hub 2 | . . . . . . . . . . . 2 . . . . . . . . . . . . . . . Energy Cycler 1 | . . . . . . . . 1 . . . . . . . . . . . . . . . . . . Machines Sabotaged . | . . . . . . . . . . . . . . . . . . . . . . . . . . . Garrisons Compromised . | . . . . . . . . . . . . . . . . . . . . . . . . . . . Overloaded Fab Kills . | . . . . . . . . . . . . . . . . . . . . . . . . . . . Hacking | -11 -10 -9 -8 -7 -7 -6 -5 -5 -5 -5 -5 -4 -4 -4 -4 -4 -4 -3 -3 -3 -3 -2 -2 -1 -1 -1 --------- Run | Scr Mat Mat Mat Fac Sto Fac Fac Ext Cet Arc Hub Fac Was Fac Upp Upp War Pro Res Qua Sec Res Tes Acc Com Ac0 Machines Accessed 89 | . 3 2 3 . 4 3 4 11 . . 4 11 . 3 . . 1 . 6 7 12 . 8 4 3 . Terminals 66 | . 2 2 1 . 4 2 3 10 . . 3 6 . 2 . . . . 3 6 12 . 5 2 3 . Fabricators 7 | . . . . . . 1 1 . . . . 4 . 1 . . . . . . . . . . . . Repair Stations . | . . . . . . . . . . . . . . . . . . . . . . . . . . . Recycling Units 4 | . 1 . 2 . . . . 1 . . . . . . . . . . . . . . . . . . Scanalyzers 2 | . . . . . . . . . . . . . . . . . . . . . . . 2 . . . Garrison Access 9 | . . . . . . . . . . . 1 1 . . . . . . 3 1 . . 1 2 . . Total Hacks 259 | . 9 10 6 . 8 3 8 16 . . 10 41 . 10 . . 1 . 20 21 48 . 31 9 8 . Successful 104 | . 6 2 2 . 2 1 2 11 . . 2 20 . 4 . . 1 . 9 7 17 . 11 3 4 . Failed 154 | . 3 8 4 . 6 2 6 5 . . 8 20 . 6 . . . . 11 14 31 . 20 6 4 . Catastrophic 43 | . 1 1 2 . 3 1 1 1 . . 2 3 . 2 . . . . 2 4 9 . 6 2 3 . Database Lockouts 1 | . . . . . . . . . . . . 1 . . . . . . . . . . . . . . Manual 137 | . 5 10 6 . 2 1 3 5 1 . 3 35 . 3 . . . . 9 4 24 . 18 3 5 . Terminals 213 | . 8 10 4 . 8 2 6 14 . . 7 28 . 7 . . . . 15 19 48 . 24 5 8 . Fabricators 16 | . . . . . . 1 2 . . . . 10 . 3 . . . . . . . . . . . . Repair Stations . | . . . . . . . . . . . . . . . . . . . . . . . . . . . Recycling Units 5 | . 1 . 2 . . . . 2 . . . . . . . . . . . . . . . . . . Scanalyzers 3 | . . . . . . . . . . . . . . . . . . . . . . . 3 . . . Garrison Access 21 | . . . . . . . . . . . 3 3 . . . . . . 5 2 . . 4 4 . . Terminal Hacks 61 | . 4 1 . . 2 . 1 8 . . 1 11 . 3 . . 1 . 3 6 12 . 6 1 1 . Part Schematic 1 | . . . . . . . . . . . . 1 . . . . . . . . . . . . . . Prototype ID Bank 1 | . . . . . . . . . . . . . . 1 . . . . . . . . . . . . Open Door 16 | . . . . . 2 . . 6 . . . . . . . . 1 . . 2 3 . . 1 1 . Level Access Points 3 | . 1 . . . . . . . . . 1 . . . . . . . . 1 . . . . . . Branch Access Points 5 | . . 1 . . . . 1 . . . . 1 . 1 . . . . 1 . . . . . . . Emergency Access Points 3 | . . . . . . . . . . . . 1 . . . . . . . . 1 . 1 . . . Terminal Index 2 | . . . . . . . . . . . . 1 . . . . . . . . 1 . . . . . Fabricator Index 1 | . . . . . . . . . . . . . . . . . . . 1 . . . . . . . Repair Station Index 2 | . . . . . . . . . . . . . . 1 . . . . 1 . . . . . . . Alert Level 1 | . . . . . . . . . . . . 1 . . . . . . . . . . . . . . Unreport Threat 12 | . . . . . . . . . . . . 4 . . . . . . . 3 3 . 2 . . . Locate Traps 4 | . . . . . . . . 1 . . . . . . . . . . . . 1 . 2 . . . Transport Status 1 | . . . . . . . . . . . . 1 . . . . . . . . . . . . . . Recall Investigation 2 | . 2 . . . . . . . . . . . . . . . . . . . . . . . . . Recall Extermination 1 | . . . . . . . . . . . . . . . . . . . . . 1 . . . . . Recall Reinforcements 1 | . 1 . . . . . . . . . . . . . . . . . . . . . . . . . Hauler Manifests 2 | . . . . . . . . 1 . . . 1 . . . . . . . . . . . . . . Zone Layout 3 | . . . . . . . . . . . . . . . . . . . . . 2 . 1 . . . Fabricator Hacks 3 | . . . . . . 1 1 . . . . 1 . . . . . . . . . . . . . . Network Status 2 | . . . . . . 1 . . . . . 1 . . . . . . . . . . . . . . Build 1 | . . . . . . . 1 . . . . . . . . . . . . . . . . . . . Repair Station Hacks . | . . . . . . . . . . . . . . . . . . . . . . . . . . . Recycling Unit Hacks . | . . . . . . . . . . . . . . . . . . . . . . . . . . . Scanalyzer . | . . . . . . . . . . . . . . . . . . . . . . . . . . . Garrison Access Hacks 7 | . . . . . . . . . . . 1 . . . . . . . 3 1 . . 1 1 . . Seal Access 7 | . . . . . . . . . . . 1 . . . . . . . 3 1 . . 1 1 . . Unauthorized Hacks 33 | . 2 1 2 . . . . 3 . . . 8 . 1 . . . . 3 . 5 . 4 1 3 . Terminals 20 | . 1 1 . . . . . 2 . . . 1 . . . . . . 3 . 5 . 3 1 3 . Track 3 | . . . . . . . . . . . . . . . . . . . . . 2 . 1 . . . Assimilate 1 | . . . . . . . . . . . . . . . . . . . . . 1 . . . . . Botnet 14 | . 1 1 . . . . . 2 . . . 1 . . . . . . 2 . 2 . 2 1 2 . Operators 2 | . . . . . . . . . . . . . . . . . . . 1 . . . . . 1 . Fabricators 8 | . . . . . . . . . . . . 7 . 1 . . . . . . . . . . . . Prioritize 1 | . . . . . . . . . . . . 1 . . . . . . . . . . . . . . Liberate 1 | . . . . . . . . . . . . 1 . . . . . . . . . . . . . . Fabnet 5 | . . . . . . . . . . . . 4 . 1 . . . . . . . . . . . . Haulers 1 | . . . . . . . . . . . . 1 . . . . . . . . . . . . . . Repair Stations . | . . . . . . . . . . . . . . . . . . . . . . . . . . . Recycling Units 4 | . 1 . 2 . . . . 1 . . . . . . . . . . . . . . . . . . Reject 1 | . . . . . . . . 1 . . . . . . . . . . . . . . . . . . Tunnel 3 | . 1 . 2 . . . . . . . . . . . . . . . . . . . . . . . Scanalyzers 1 | . . . . . . . . . . . . . . . . . . . . . . . 1 . . . Researchers 1 | . . . . . . . . . . . . . . . . . . . . . . . 1 . . . Garrison Access . | . . . . . . . . . . . . . . . . . . . . . . . . . . . Data Cores Recovered . | . . . . . . . . . . . . . . . . . . . . . . . . . . . Used . | . . . . . . . . . . . . . . . . . . . . . . . . . . . Hacking Detections 60 | . 2 2 1 . 2 2 4 8 . . 4 8 . 2 . . . . 3 3 9 . 6 2 2 . Full Trace Events 7 | . 1 1 1 . 1 . . . . . 1 . . . . . . . 1 1 . . . . . . Feedback Events . | . . . . . . . . . . . . . . . . . . . . . . . . . . . Feedback Blocked . | . . . . . . . . . . . . . . . . . . . . . . . . . . . Robot Schematics Acquired 2 | . . . . . . . . . . . . . . . . . . . 2 . . . . . . . Robots Built . | . . . . . . . . . . . . . . . . . . . . . . . . . . . Authchips . | . . . . . . . . . . . . . . . . . . . . . . . . . . . Time . | . . . . . . . . . . . . . . . . . . . . . . . . . . . Total Robot Build Rating . | . . . . . . . . . . . . . . . . . . . . . . . . . . . Part Schematics Acquired 11 | . . . . . . . . . . . . 1 . . . . . . 4 6 . . . . . . Parts Built 1 | . . . . . . . 1 . . . . . . . . . . . . . . . . . . . Authchips . | . . . . . . . . . . . . . . . . . . . . . . . . . . . Time 53 | . . . . . . . 53 . . . . . . . . . . . . . . . . . . . Total Part Build Rating 6 | . . . . . . . 6 . . . . . . . . . . . . . . . . . . . Parts Repaired . | . . . . . . . . . . . . . . . . . . . . . . . . . . . Time . | . . . . . . . . . . . . . . . . . . . . . . . . . . . Parts Recycled . | . . . . . . . . . . . . . . . . . . . . . . . . . . . Recycled Matter . | . . . . . . . . . . . . . . . . . . . . . . . . . . . Retrieved Matter . | . . . . . . . . . . . . . . . . . . . . . . . . . . . Retrieved Components . | . . . . . . . . . . . . . . . . . . . . . . . . . . . Parts Scanalyzed . | . . . . . . . . . . . . . . . . . . . . . . . . . . . Part Schematics Acquired . | . . . . . . . . . . . . . . . . . . . . . . . . . . . Parts Damaged . | . . . . . . . . . . . . . . . . . . . . . . . . . . . Bothacking | -11 -10 -9 -8 -7 -7 -6 -5 -5 -5 -5 -5 -4 -4 -4 -4 -4 -4 -3 -3 -3 -3 -2 -2 -1 -1 -1 ------------ Run | Scr Mat Mat Mat Fac Sto Fac Fac Ext Cet Arc Hub Fac Was Fac Upp Upp War Pro Res Qua Sec Res Tes Acc Com Ac0 Used RIF Installer . | . . . . . . . . . . . . . . . . . . . . . . . . . . . Robots Hacked 33 | . . . . . . . . . . . . . . . . . . 3 11 5 7 5 2 . . . Non-combat . | . . . . . . . . . . . . . . . . . . . . . . . . . . . Combat 33 | . . . . . . . . . . . . . . . . . . 3 11 5 7 5 2 . . . Robot Hacks Applied . | . . . . . . . . . . . . . . . . . . . . . . . . . . . Relay Couplers Released 10 | . . . . . . 2 . . . . . 2 . . . . . . . . 2 2 . 2 . . Machine Destruction 10 | . . . . . . 2 . . . . . 2 . . . . . . . . 2 2 . 2 . . Fabnet Peak Effective % 15 | . . . . . . . . . . . . . . . . . . 15 15 15 15 5 5 . . . Autooverrided 33 | . . . . . . . . . . . . . . . . . . 3 11 5 7 5 2 . . . Robots Rewired 12 | . . . . . . . . 7 . . . . . . . . 5 . . . . . . . . . Allies Hacked 2 | . . . . . . . . . . . . 2 . . . . . . . . . . . . . . Hacks Repelled . | . . . . . . . . . . . . . . . . . . . . . . . . . . . Allies | -11 -10 -9 -8 -7 -7 -6 -5 -5 -5 -5 -5 -4 -4 -4 -4 -4 -4 -3 -3 -3 -3 -2 -2 -1 -1 -1 -------- Run | Scr Mat Mat Mat Fac Sto Fac Fac Ext Cet Arc Hub Fac Was Fac Upp Upp War Pro Res Qua Sec Res Tes Acc Com Ac0 Total Allies 85 | . . . . . . . . 18 5 . . 3 20 . . . 5 3 11 5 8 5 2 . . . Largest Group 19 | . . . . . . . . 6 7 3 1 3 19 17 8 6 5 1 3 1 2 1 1 . . . Highest-Rated Group 702 | . . . . . . . . 293 535 220 90 141 702 597 340 248 262 64 176 47 254 69 84 . . . Highest-Rated Ally 198 | . . . . . . . . 159 153 95 90 47 50 46 46 46 65 64 64 47 198 69 84 . . . Total Orders 15 | . . . . . . . . . 5 . . . . . . . 1 . . . . . . . 2 7 STAY 5 | . . . . . . . . . 4 . . . . . . . 1 . . . . . . . . . FOLLOW 2 | . . . . . . . . . 1 . . . . . . . . . . . . . . . . 1 EXPLORE 2 | . . . . . . . . . . . . . . . . . . . . . . . . . . 2 RETURN 6 | . . . . . . . . . . . . . . . . . . . . . . . . . 2 4 Ally Attacks 513 | . . . . . . . . 156 60 10 13 5 106 53 28 8 10 4 23 8 14 9 6 . . . Total Damage 11797 | . . . . . . . . 2560 1966 330 619 138 2301 729 687 123 360 82 605 298 336 534 129 . . . Kills 58 | . . . . . . . . 18 10 2 4 . 5 8 3 . 2 1 2 1 . 2 . . . . Allies Corrupted 4 | . . . . . . . . . . . 1 1 . . . . 1 . . . . 1 . . . . Allies Melted . | . . . . . . . . . . . . . . . . . . . . . . . . . . . Intel | -11 -10 -9 -8 -7 -7 -6 -5 -5 -5 -5 -5 -4 -4 -4 -4 -4 -4 -3 -3 -3 -3 -2 -2 -1 -1 -1 ------- Run | Scr Mat Mat Mat Fac Sto Fac Fac Ext Cet Arc Hub Fac Was Fac Upp Upp War Pro Res Qua Sec Res Tes Acc Com Ac0 Robot Analysis Total . | . . . . . . . . . . . . . . . . . . . . . . . . . . . Derelict Logs Recovered 2 | . . . . . . . . . . . . . . . 1 1 . . . . . . . . . . Drone Launches 7 | . . . . . . . . . . . . . . . . . . . . . . . . . 3 4 Drone Recoveries 6 | . . . . . . . . . . . . . . . . . . . . . . . . . 2 4 Exploration | -11 -10 -9 -8 -7 -7 -6 -5 -5 -5 -5 -5 -4 -4 -4 -4 -4 -4 -3 -3 -3 -3 -2 -2 -1 -1 -1 ------------- Run | Scr Mat Mat Mat Fac Sto Fac Fac Ext Cet Arc Hub Fac Was Fac Upp Upp War Pro Res Qua Sec Res Tes Acc Com Ac0 Turns Passed 41447 | 44 316 389 988 358 347 246 276 1375 426 511 725 708 431 282 293 328 973 378 996 1801 2715 1294 2652 2002 19826 767 Spaces Moved 19433 | 20 215 197 366 195 197 549 582 791 208 151 323 556 358 255 229 261 732 322 744 876 1439 765 1034 681 6778 609 Core 42 | . . . . . 30 . 12 . . . . . . . . . . . . . . . . . . . Treads 11726 | . 24 197 366 195 143 . . 305 208 151 227 . . . . . . . . . 811 765 994 602 6653 85 Legs 5102 | 10 . . . . . . . . . . 96 556 358 255 229 261 732 322 744 876 535 . . . . 128 Wheels 602 | 10 191 . . . . . . 401 . . . . . . . . . . . . . . . . . . Hover . | . . . . . . . . . . . . . . . . . . . . . . . . . . . Flight 1228 | . . . . . 24 549 570 85 . . . . . . . . . . . . . . . . . . Fastest Speed 14 | 95 95 160 160 160 26 14 17 27 160 160 100 100 100 100 100 100 96 96 95 103 120 145 152 188 185 108 Average Speed 147 | 107 102 160 160 160 127 25 29 130 160 160 143 100 100 100 100 100 98 96 99 119 140 157 209 188 185 161 Slowest Speed 240 | 120 160 160 240 160 240 26 200 240 160 160 170 103 100 100 100 100 100 96 103 183 190 210 210 188 210 205 Overloaded Moves 27 | . . . . . . 15 12 . . . . . . . . . . . . . . . . . . . Propulsion Burnouts . | . . . . . . . . . . . . . . . . . . . . . . . . . . . Robots Hopped 19 | . . . . . 1 16 2 . . . . . . . . . . . . . . . . . . . Cave-ins Triggered . | . . . . . . . . . . . . . . . . . . . . . . . . . . . Teleports 4 | . . . . . . . . . . . . . . . . . . . . 2 1 . . . 1 . Microwarps 85 | . . . . . . . . . . . . . . . . . . . . . 8 . 4 10 15 48 Exploration Rate (%) 45 | 3 43 20 29 6 36 24 15 82 58 79 32 20 95 8 46 46 78 48 30 93 80 28 90 17 95 33 Regions Visited 26 Branch Regions 14 Pre-discovered Areas 5 | . 1 . 2 . . . . . . . . . . . 1 1 . . . . . . . . . . Known Exits Taken 9 | . 1 . . . . . 1 . . . 1 . . 1 . . . . 1 . 1 1 1 1 . . Unknown Exits Taken 15 | 1 . 1 1 1 1 1 . 1 1 1 . . . . 1 1 1 1 . 1 . . . . 1 . Scrap Searched 3 | . . . . . . . . . . . . . . . . 2 . 1 . . . . . . . . Spaces Dug 361 | . 1 4 1 . 2 15 3 2 . . 4 4 2 . 2 7 1 23 39 24 22 3 31 97 18 56 Terrain Destroyed 1534 | . 1 4 37 1 16 35 3 6 8 7 228 91 6 . 9 13 11 37 68 75 60 4 53 156 169 436 Melee 6 | . . 4 . . . . . 1 . . . . . . . . 1 . . . . . . . . . Projectile 447 | . 1 . 14 1 8 10 3 5 8 6 54 22 6 . 9 13 . 23 40 44 26 4 53 53 24 20 AOE 1060 | . . . 23 . 8 25 . . . . 172 69 . . . . 10 14 28 28 34 . . 97 138 414 Terrain Rammed 2 | . . . . . . . . . . . . . . . . . . . . . . . . . . 2 Walls Destroyed . | . . . . . . . . . . . . . . . . . . . . . . . . . . . Machines Disabled 1 | . . . . . . . . . . . . . . . . . . . . . . . . . . 1 Actions | -11 -10 -9 -8 -7 -7 -6 -5 -5 -5 -5 -5 -4 -4 -4 -4 -4 -4 -3 -3 -3 -3 -2 -2 -1 -1 -1 --------- Run | Scr Mat Mat Mat Fac Sto Fac Fac Ext Cet Arc Hub Fac Was Fac Upp Upp War Pro Res Qua Sec Res Tes Acc Com Ac0 Total 30270 | 30 273 249 585 224 264 598 653 1042 272 348 473 636 415 284 268 316 972 358 915 1387 2008 833 1403 1193 13769 502 Wait 7922 | . 25 12 39 8 2 1 16 85 11 125 14 12 18 . 7 23 133 7 14 213 337 12 144 252 6405 7 Move 18730 | 19 214 196 366 194 194 523 577 790 207 150 322 556 357 254 228 260 731 321 743 875 1353 764 998 611 6667 260 Hop 13 | . . . . . 1 10 2 . . . . . . . . . . . . . . . . . . . Pick Up 261 | 1 3 8 16 3 9 4 9 6 6 1 5 5 7 8 2 3 14 . 11 21 22 3 10 30 41 13 Fast Attach 423 | 1 2 1 20 4 9 1 11 13 11 4 19 4 7 3 4 4 10 . 17 34 33 11 30 24 130 16 Attach 254 | . 3 5 4 3 4 6 4 4 1 . 8 5 3 4 3 3 7 . 11 16 15 4 12 35 41 53 Detach 194 | 1 1 . 2 . 5 3 3 3 2 . 8 . 3 4 2 1 1 . 14 12 8 3 13 18 51 36 Swap 200 | . 1 7 13 2 4 1 . 6 2 4 9 5 . . 2 2 3 1 16 25 30 3 16 15 23 10 Drop 526 | 1 3 8 29 3 17 1 6 15 17 3 15 5 10 8 2 7 21 . 16 32 39 18 42 46 150 12 Fire 1508 | 7 21 7 88 7 19 41 25 49 15 61 72 44 10 2 18 13 11 29 73 139 103 14 128 160 259 93 Melee 12 | . . 5 . . . . . 1 . . . . . . . . 1 . . . 5 . . . . . Ram 3 | . . . . . . . . 1 . . . . . . . . . . . . . . . . . 2 Kick 22 | . . . . . . . . . . . . . . 1 . . . . . 20 1 . . . . . Crush 83 | . . . 8 . . . . 2 . . 1 . . . . . . . . . 60 1 9 2 . . Escape Stasis 10 | . . . . . . 7 . 3 . . . . . . . . . . . . . . . . . . Rewire 109 | . . . . . . . . 64 . . . . . . . . 40 . . . 2 . 1 . 2 . Trap . | . . . . . . . . . . . . . . . . . . . . . . . . . . . Miscellaneous . | . . . . . . . . . . . . . . . . . . . . . . . . . . . Route ------- -11/Scrapyard -10/Materials (discovered 4 exits: *Mat x3 / [*Min]) -9/Materials (discovered 3 exits: *Mat / Min x2) -8/Materials -7/Factory -7/Storage -6/Factory -5/Factory (discovered 4 exits: *Upp x2 / *Ext x2) -5/Extension (discovered 2 exits: *Fac / *Cet) -5/Cetus (discovered 2 exits: *Fac / [*Arc]) -5/Archives (discovered 3 exits: *Fac / *Hub x2) -5/Hub_04(d) (discovered 4 exits: *Fac x4) -4/Factory (discovered 2 exits: Upp x2) -4/Waste -4/Factory (discovered 2 exits: *Upp x2) -4/Upper Caves -4/Upper Caves -4/Warlord -3/Proximity Caves -3/Research (discovered 3 exits: Arm / *Qua x2) -3/Quarantine -3/Section 7 -2/Research -2/Testing -1/Access -1/Command (discovered 3 exits: [*Sur x2] / [*Ac0]) -1/Access_0 History --------- Turn | Location | Event 21 | -11/Scrapyard | Discovered new exit (range 2) 45 | -11/Scrapyard | Entered Materials 176 | -10/Materials | Identified exit to Materials 191 | -10/Materials | Discovered new exit (range 15) 308 | -10/Materials | Build established: Mutant 361 | -10/Materials | Entered another Materials area 361 | -9/Materials | Evolved 2 slots: Propulsion x1, Weapon x1 644 | -9/Materials | Discovered new exit (range 4) 676 | -9/Materials | Identified exit to Mines 750 | -9/Materials | Entered another Materials area 750 | -8/Materials | Evolved 2 slots: Propulsion x1, Utility x1 830 | -8/Materials | Build established: Skirmisher 1648 | -8/Materials | Build established: Scavenger-Tank 1713 | -8/Materials | Discovered new exit (range 8) 1738 | -8/Materials | Entered Factory 1738 | -7/Factory | Evolved 2 slots: Utility x2 1952 | -7/Factory | Discovered new exit (range 5) 2032 | -7/Factory | Garrison activated, responded to threat 2096 | -7/Factory | Entered Storage 2428 | -7/Storage | Discovered new exit (range 7) 2443 | -7/Storage | Entered Factory 2443 | -6/Factory | Evolved 2 slots: Power x1, Utility x1 2465 | -6/Factory | Lost 6 parts (4n2u) 2652 | -6/Factory | Discovered new exit (range 7) 2689 | -6/Factory | Entered another Factory area 2689 | -5/Factory | Evolved 2 slots: Propulsion x1, Utility x1 2809 | -5/Factory | Identified exit to Upper Caves 2809 | -5/Factory | Identified exit to Extension 2881 | -5/Factory | Fabricated Mni. Drone Bay (x1) 2965 | -5/Factory | Entered Extension 2984 | -5/Extension | Rescued a captive Derelict 2986 | -5/Extension | Rescued a captive Derelict 3151 | -5/Extension | Rescued A7 3214 | -5/Extension | Rescued a captive Derelict 3268 | -5/Extension | Rescued a captive Derelict 3269 | -5/Extension | Rescued a captive Derelict 3360 | -5/Extension | Spotted B-75 Beast 3371 | -5/Extension | Rescued a captive Derelict 3372 | -5/Extension | Rescued a captive Derelict 3675 | -5/Extension | Allies destroyed B-75 Beast 3682 | -5/Extension | Spotted B-75 Beast 3701 | -5/Extension | Destroyed B-75 Beast 3715 | -5/Extension | Disrupted transfer network 3777 | -5/Extension | Build established: Scavenger-Mutant 3791 | -5/Extension | Rescued a captive Derelict 3791 | -5/Extension | Rescued a captive Derelict 3857 | -5/Extension | Rescued a captive Derelict 3995 | -5/Extension | Energy Cycler disabled 3996 | -5/Extension | Rescued a captive Derelict 4211 | -5/Extension | Discovered new exit (range 10) 4212 | -5/Extension | Discovered new exit (range 6) 4300 | -5/Extension | Build established: Scavenger-Gunner 4340 | -5/Extension | Entered Cetus 4340 | -5/Cetus | Accompanied by 5 allies (A7) 4345 | -5/Cetus | Acquired a Cetus Manufacturing Module code from A7 4364 | -5/Cetus | Spotted Cetus Guard 4364 | -5/Cetus | Spotted Cetus Guard 4365 | -5/Cetus | Spotted Cetus Guard 4366 | -5/Cetus | Destroyed Cetus Guard 4367 | -5/Cetus | Spotted Cetus Guard 4378 | -5/Cetus | Allies destroyed Cetus Guard 4379 | -5/Cetus | Destroyed Cetus Guard 4387 | -5/Cetus | Allies destroyed Cetus Guard 4488 | -5/Cetus | Started Cetus Manufacturing Module 4505 | -5/Cetus | Discovered new exit (range 17) 4513 | -5/Cetus | Manufactured an Enhanced Grunt 4538 | -5/Cetus | Manufactured an Enhanced Grunt 4558 | -5/Cetus | Allies destroyed A7 4563 | -5/Cetus | Manufactured an Enhanced Grunt 4570 | -5/Cetus | Extracted ID and sensor layout for unrecognized location from A7's data core 4588 | -5/Cetus | Manufactured an Enhanced Grunt 4613 | -5/Cetus | Manufactured an Enhanced Grunt 4620 | -5/Cetus | Spotted Cetus Guard 4620 | -5/Cetus | Spotted Cetus Guard 4623 | -5/Cetus | Spotted Cetus Guard 4626 | -5/Cetus | Spotted Cetus Guard 4626 | -5/Cetus | Allies destroyed Cetus Guard 4633 | -5/Cetus | Destroyed Cetus Guard 4633 | -5/Cetus | Destroyed Cetus Guard 4636 | -5/Cetus | Allies destroyed Cetus Guard 4648 | -5/Cetus | Discovered new exit (range 18) 4663 | -5/Cetus | Met Revision 17 4694 | -5/Cetus | Build established: Scavenger-Tank 4766 | -5/Cetus | Entered Archives 4766 | -5/Archives | Accompanied by 3 allies 4823 | -5/Archives | Discovered new exit (range 14) 4837 | -5/Archives | Discovered new exit (range 16) 4914 | -5/Archives | Discovered new exit (range 16) 5086 | -5/Archives | System corruption reached 10% 5277 | -5/Archives | Entered Hub_04(d) 5277 | -5/Hub_04(d) | Accompanied by 1 ally 5336 | -5/Hub_04(d) | Identified exit to Factory 5659 | -5/Hub_04(d) | Network Hub disabled 5678 | -5/Hub_04(d) | Spotted Lightning 5679 | -5/Hub_04(d) | Spotted Lightning 5681 | -5/Hub_04(d) | Spotted Lightning 5684 | -5/Hub_04(d) | Destroyed Lightning 5692 | -5/Hub_04(d) | Destroyed Lightning 5709 | -5/Hub_04(d) | Spotted Lightning 5710 | -5/Hub_04(d) | Destroyed Lightning 5713 | -5/Hub_04(d) | Spotted Lightning 5723 | -5/Hub_04(d) | Found Prototype Device 5723 | -5/Hub_04(d) | Identified Exp. Phase Shifter 5730 | -5/Hub_04(d) | Spotted Lightning 5758 | -5/Hub_04(d) | System corruption reached 30% 5760 | -5/Hub_04(d) | Destroyed Lightning 5782 | -5/Hub_04(d) | Destroyed Lightning 5786 | -5/Hub_04(d) | Disrupted transfer network 5814 | -5/Hub_04(d) | Destroyed Lightning 5834 | -5/Hub_04(d) | Found Prototype Energy Cannon 5834 | -5/Hub_04(d) | Identified EMDS 5846 | -5/Hub_04(d) | Found Prototype Processor 5846 | -5/Hub_04(d) | Identified Exp. Targeting Computer 5868 | -5/Hub_04(d) | Lost 3 parts (1p1n1u) 5891 | -5/Hub_04(d) | Found Prototype Device 5891 | -5/Hub_04(d) | Identified EM Dispersion Field 5894 | -5/Hub_04(d) | Found Exp. Targeting Computer 5905 | -5/Hub_04(d) | Found EMDS 5930 | -5/Hub_04(d) | Found Exp. Phase Shifter 5974 | -5/Hub_04(d) | Network Hub disabled 6002 | -5/Hub_04(d) | Entered Factory 6002 | -4/Factory | Evolved 2 slots: Propulsion x1, Utility x1 6274 | -4/Factory | Identified exit to Upper Caves 6274 | -4/Factory | Central database locked down 6352 | -4/Factory | Build established: Scavenger-Mutant 6710 | -4/Factory | Sucked down chute 6710 | -4/Factory | Entered Waste 6711 | -4/Waste | Met a frightened Derelict 6726 | -4/Waste | Spotted C-40 Crusher 6770 | -4/Waste | Spotted C-40 Crusher 6774 | -4/Waste | Spotted C-40 Crusher 6779 | -4/Waste | Warlord forces began an assault 6789 | -4/Waste | Allies destroyed C-40 Crusher 6801 | -4/Waste | Spotted C-40 Crusher 6804 | -4/Waste | Allies destroyed C-40 Crusher 6804 | -4/Waste | Allies destroyed C-40 Crusher 6807 | -4/Waste | Spotted C-40 Crusher 6808 | -4/Waste | Allies destroyed C-40 Crusher 6819 | -4/Waste | Spotted C-40 Crusher 6820 | -4/Waste | Destroyed C-40 Crusher 6824 | -4/Waste | Allies destroyed C-40 Crusher 6953 | -4/Waste | Discovered new exit (range 12) 7141 | -4/Waste | Entered Factory 7141 | -4/Factory | Accompanied by 17 allies 7217 | -4/Factory | Found Prototype Processor 7217 | -4/Factory | Identified Exp. Signal Interpreter 7222 | -4/Factory | Found Exp. Signal Interpreter 7266 | -4/Factory | Build established: Scavenger-Gunner 7423 | -4/Factory | Entered Upper Caves 7423 | -4/Upper Caves | Accompanied by 8 allies 7619 | -4/Upper Caves | Build established: Scavenger-Mutant 7668 | -4/Upper Caves | Discovered new exit (range 12) 7670 | -4/Upper Caves | Encountered a Warlord checkpoint 7686 | -4/Upper Caves | Learned location of Testing (-2) 7716 | -4/Upper Caves | Entered another Upper Caves area 7716 | -4/Upper Caves | Accompanied by 6 allies 7977 | -4/Upper Caves | Learned location of Quarantine (-3) 8018 | -4/Upper Caves | Discovered new exit (range 8) 8044 | -4/Upper Caves | Entered Warlord 8044 | -4/Warlord | Accompanied by 3 allies 8071 | -4/Warlord | Discovered new exit (range 14) 8503 | -4/Warlord | Visited the Vortex Lab 8506 | -4/Warlord | Build established: Scavenger-Tank 8507 | -4/Warlord | Found Prototype Energy Gun 8507 | -4/Warlord | Identified Vortex Shotgun 8513 | -4/Warlord | Found Prototype Piercing Weapon 8513 | -4/Warlord | Identified Vortex Lance 8520 | -4/Warlord | Warlord's base attacked by MAIN.C 8560 | -4/Warlord | Met Warlord 8588 | -4/Warlord | Found Prototype Reactor 8588 | -4/Warlord | Identified Vortex Chain Reactor 8594 | -4/Warlord | Found Prototype Processor 8594 | -4/Warlord | Identified Exp. Target Analyzer 8792 | -4/Warlord | Spotted B-90 Cyclops 8870 | -4/Warlord | Warlord forces counterattacked 8921 | -4/Warlord | Spotted Striker 8968 | -4/Warlord | Spotted Striker 8977 | -4/Warlord | Destroyed Striker 8992 | -4/Warlord | Spotted Striker 8997 | -4/Warlord | Destroyed Striker 9017 | -4/Warlord | Entered Proximity Caves 9098 | -3/Proximity Caves | Build established: Scavenger-Mutant 9211 | -3/Proximity Caves | Spotted B-86 Titan 9389 | -3/Proximity Caves | Discovered new exit (range 5) 9395 | -3/Proximity Caves | Entered Research 9395 | -3/Research | Evolved 2 slots: Utility x2 9526 | -3/Research | Found Unknown Launcher 9526 | -3/Research | Identified Gamma Bomb Array 9533 | -3/Research | Found Gamma Bomb Array 9595 | -3/Research | Revision forces began assault on 0b10 9605 | -3/Research | Spotted B-86 Titan 9737 | -3/Research | Met up with Revision 17++ 9841 | -3/Research | Identified exit to Armory 9841 | -3/Research | Identified exit to Quarantine 9870 | -3/Research | Found Prototype Processor 9907 | -3/Research | Identified Exp. Melee Analysis Suite 10085 | -3/Research | Spotted B-86 Titan 10095 | -3/Research | Research terminal network offline 10116 | -3/Research | Destroyed Revision 17++ 10135 | -3/Research | System corruption reached 10% 10149 | -3/Research | Destroyed 25 combat bots 10149 | -3/Research | Spotted Striker 10154 | -3/Research | Spotted Striker 10164 | -3/Research | Spotted Striker 10164 | -3/Research | Destroyed Striker 10166 | -3/Research | Spotted Striker 10174 | -3/Research | Destroyed Striker 10288 | -3/Research | Found Gamma Bomb Array 10391 | -3/Research | Entered Quarantine 10398 | -3/Quarantine | Identified exit to Research 10439 | -3/Quarantine | Found Alien Artifact 10439 | -3/Quarantine | Identified Phase Armor 10547 | -3/Quarantine | Spotted Alpha 7 10669 | -3/Quarantine | Core integrity fell below 50% 10683 | -3/Quarantine | Destroyed Alpha 7 10695 | -3/Quarantine | Found Prototype Ballistic Gun 10695 | -3/Quarantine | Identified Multirail 10708 | -3/Quarantine | Found Prototype Device 10708 | -3/Quarantine | Identified Exp. ECM Suite 10718 | -3/Quarantine | Found Exp. Target Analyzer 10765 | -3/Quarantine | Found Exp. Targeting Computer 10790 | -3/Quarantine | Found Prototype Processor 10790 | -3/Quarantine | Identified Spectral Analyzer 10793 | -3/Quarantine | Found Prototype Device 10793 | -3/Quarantine | Identified Exp. Shield Generator 10820 | -3/Quarantine | Garrison activated, responded to threat 10877 | -3/Quarantine | Found Alien Artifact 10891 | -3/Quarantine | First assault squad dispatched 10902 | -3/Quarantine | Cryocooling Duct disabled 10917 | -3/Quarantine | Ambient heat levels rising (+20) 10917 | -3/Quarantine | Non-combat units ordered to evacuate 10994 | -3/Quarantine | Destroyed 7 combat bots 11008 | -3/Quarantine | Lost 4 parts (1u3w) 11257 | -3/Quarantine | Met incapacitated Sigix Warrior 11257 | -3/Quarantine | Lockdown squad dispatched 11384 | -3/Quarantine | Spotted Lightning 11387 | -3/Quarantine | Destroyed Lightning 11402 | -3/Quarantine | Spotted Lightning 11402 | -3/Quarantine | Spotted Lightning 11443 | -3/Quarantine | Destroyed Lightning 11470 | -3/Quarantine | Destroyed Lightning 11484 | -3/Quarantine | Found Exp. Targeting Computer 11512 | -3/Quarantine | Found EMDS 11537 | -3/Quarantine | Found EMDS 11704 | -3/Quarantine | Found Alien Artifact 11737 | -3/Quarantine | Found Alien Energy Cannon 11962 | -3/Quarantine | Found Alien Artifact 12004 | -3/Quarantine | Identified Subatomic Replicator 12013 | -3/Quarantine | Found Alien Artifact 12020 | -3/Quarantine | Found Alien Artifact 12020 | -3/Quarantine | Identified Dimensional Node Initializer 12020 | -3/Quarantine | Initialized slip node 12028 | -3/Quarantine | Found Alien Artifact 12028 | -3/Quarantine | Identified Transdimensional Reconstructor (x2) 12028 | -3/Quarantine | Warped through subspace to slip node 12036 | -3/Quarantine | Found Alien Artifact 12036 | -3/Quarantine | Identified Hpw. Transdimensional Reconstructor 12036 | -3/Quarantine | Warped through subspace to slip node 12045 | -3/Quarantine | Found Hpw. Transdimensional Reconstructor 12100 | -3/Quarantine | Spotted Fortress 12185 | -3/Quarantine | Discovered new exit (range 5) 12191 | -3/Quarantine | Identified Core Reset Matrix 12191 | -3/Quarantine | Identified Matter Drive 12191 | -3/Quarantine | Used Core Reset Matrix 12192 | -3/Quarantine | Entered Section 7 12195 | -3/Section 7 | Sensed 18 artifacts in vicinity 12277 | -3/Section 7 | Found Microwarp Drive 12306 | -3/Section 7 | Found Core Reset Matrix 12427 | -3/Section 7 | Spotted B-86 Titan 12460 | -3/Section 7 | Spotted S7 Guard 12465 | -3/Section 7 | Found Navigation Efficiency Matrix 12581 | -3/Section 7 | Destroyed S7 Guard 12587 | -3/Section 7 | Garrison activated, responded to threat 12928 | -3/Section 7 | Spotted S7 Guard 12931 | -3/Section 7 | Destroyed S7 Guard 12940 | -3/Section 7 | Found Core Physics Calibrator 13132 | -3/Section 7 | Spotted Executioner 13132 | -3/Section 7 | Spotted Executioner 13143 | -3/Section 7 | Warped through subspace 13724 | -3/Section 7 | Destroyed Executioner 13745 | -3/Section 7 | Destroyed Executioner 13772 | -3/Section 7 | Found Prototype Device 13772 | -3/Section 7 | Identified Adv. Kinecellerator 13780 | -3/Section 7 | Found Prototype Processor 13780 | -3/Section 7 | Identified Exp. Core Analyzer 13831 | -3/Section 7 | Found Transdimensional Reconstructor 13877 | -3/Section 7 | Spotted Striker 13946 | -3/Section 7 | Spotted B-99 Colossus 14005 | -3/Section 7 | Core integrity fell below 20% 14050 | -3/Section 7 | Found Core Expander 14050 | -3/Section 7 | Installed Core Expander, added new Propulsion slot 14101 | -3/Section 7 | Found LRC Boosters 14101 | -3/Section 7 | Installed LRC Boosters, increased mass support (+10) 14110 | -3/Section 7 | Found LRC Boosters 14110 | -3/Section 7 | Installed LRC Boosters, increased mass support (+10) 14304 | -3/Section 7 | Used Subatomic Replicator to create Supercharged Integrated Reactor 14307 | -3/Section 7 | Installed Supercharged Integrated Reactor, increased core energy generation (+15) 14442 | -3/Section 7 | First assault squad dispatched 14897 | -3/Section 7 | Discovered exit to Research (range 9) 14907 | -3/Section 7 | Entered Research 14907 | -2/Research | Warlord forces began assault on 0b10 14907 | -2/Research | Evolved 2 slots: Utility x2 15017 | -2/Research | Research machine network offline 15140 | -2/Research | Spotted B-90 Cyclops 15273 | -2/Research | Borebot progress halted 15321 | -2/Research | Borebot progress halted 15375 | -2/Research | Borebot progress halted 15430 | -2/Research | Met up with Warlord 15607 | -2/Research | Spotted Striker 15644 | -2/Research | Build established: Scavenger-Gunner 15675 | -2/Research | Discovered new exit (range 13) 15693 | -2/Research | Identified exit to Testing 15798 | -2/Research | Spotted Executioner 15803 | -2/Research | Spotted Executioner 15838 | -2/Research | Spotted Striker 15930 | -2/Research | Found Unknown Treads 15930 | -2/Research | Identified Megatreads 15955 | -2/Research | Spotted Striker 16024 | -2/Research | Spotted Striker 16100 | -2/Research | Warlord invited to help at Command 16201 | -2/Research | Entered Testing 16898 | -2/Testing | Spotted PD-35NH14KOPR 17148 | -2/Testing | Discovered new exit (range 5) 17378 | -2/Testing | Found Prototype Device 17941 | -2/Testing | Found Prototype Processor 17941 | -2/Testing | Identified Exp. Terrain Scan Processor 17982 | -2/Testing | Found Prototype Device 17982 | -2/Testing | Identified Beam Splitter 18133 | -2/Testing | Identified AEGIS Remote Shield 18146 | -2/Testing | Found Prototype Protection 18162 | -2/Testing | Spotted Striker 18162 | -2/Testing | Spotted Striker 18181 | -2/Testing | Build established: Scavenger-Mutant 18252 | -2/Testing | Found Prototype Energy Cannon 18252 | -2/Testing | Identified Disintegrator 18741 | -2/Testing | Identified exit to Access 18772 | -2/Testing | Found Prototype Energy Cannon 18772 | -2/Testing | Identified Imp. Potential Cannon 18776 | -2/Testing | Found Prototype Energy Cannon 18776 | -2/Testing | Identified Potential Cannon 18853 | -2/Testing | Entered Access 18853 | -1/Access | Evolved 2 slots: Propulsion x1, Utility x1 18856 | -1/Access | Identified SHELL Armor 19550 | -1/Access | Destroyed B-99 Colossus 19573 | -1/Access | Found Multirail 19674 | -1/Access | Found Multirail 20119 | -1/Access | Garrison activated, responded to threat 20353 | -1/Access | First assault squad dispatched 20358 | -1/Access | Destroyed B-99 Colossus 20365 | -1/Access | Discovered new exit (range 8) 20376 | -1/Access | Identified exit to Command 20626 | -1/Access | Spotted B-99 Colossus 20661 | -1/Access | Destroyed B-99 Colossus 20728 | -1/Access | Found Multirail 20785 | -1/Access | Found Multirail 20788 | -1/Access | Found Multirail 20855 | -1/Access | Entered Command 21149 | -1/Command | First assault squad dispatched 21271 | -1/Command | Destroyed 12 combat bots 21344 | -1/Command | Spotted M Guard 21351 | -1/Command | Spotted Combat Programmer 21353 | -1/Command | Spotted M Guard 21362 | -1/Command | Spotted Combat Programmer 21390 | -1/Command | Destroyed Combat Programmer 21428 | -1/Command | System corruption reached 10% 21436 | -1/Command | Destroyed Combat Programmer 21447 | -1/Command | Destroyed M Guard 21455 | -1/Command | Destroyed M Guard 21455 | -1/Command | All MAIN.C guards destroyed 22256 | -1/Command | Found Unknown Protection 22256 | -1/Command | Identified Hvy. Reflective Plating 22554 | -1/Command | 0b10 Conduit disabled 22555 | -1/Command | Met MAIN.C 22590 | -1/Command | Destroyed MAIN.C Shell 22593 | -1/Command | MAIN.C activated Command garrisons 22646 | -1/Command | Destroyed MAIN.C 22662 | -1/Command | Found Unknown Device 22662 | -1/Command | Identified Antimissile System 22669 | -1/Command | Found Prototype Device 22669 | -1/Command | Identified Beam Splitter 22813 | -1/Command | Build established: Scavenger-Gunner 28873 | -1/Command | Discovered new exit (range 14) 29121 | -1/Command | Found Prototype Processor 29121 | -1/Command | Identified Exp. Armor Integrity Analyzer 29125 | -1/Command | Found Prototype Device 29125 | -1/Command | Identified Exp. Hardlight Generator 29134 | -1/Command | Found Prototype Device 29134 | -1/Command | Identified EM Dispersion Field 29145 | -1/Command | Found Prototype Reactor 29145 | -1/Command | Identified Vortex Chain Reactor 29150 | -1/Command | Found AEGIS Remote Shield 29827 | -1/Command | Build established: Scavenger-Mutant 30311 | -1/Command | Spotted Alpha 7 30322 | -1/Command | Destroyed Alpha 7 30469 | -1/Command | Spotted B-99 Colossus 30614 | -1/Command | Build established: Scavenger-Gunner 31361 | -1/Command | Phase Generator disabled 31700 | -1/Command | Build established: Scavenger-Mutant 32196 | -1/Command | Found Unknown Device 32196 | -1/Command | Identified Quantum Capacitor 32978 | -1/Command | Destroyed B-99 Colossus 33057 | -1/Command | Build established: Alien-Mutant 33399 | -1/Command | Discovered new exit (range 8) 33865 | -1/Command | Found Multirail 35169 | -1/Command | Build established: Alien-Gunner 37492 | -1/Command | Found Exp. Targeting Computer 38264 | -1/Command | Build established: Alien-Mutant 40672 | -1/Command | Warped through subspace to slip node 40672 | -1/Command | Discovered new exit (range 4) 40681 | -1/Command | Entered Access_0 40682 | -1/Access_0 | Sensed 3 artifacts in vicinity 40683 | -1/Access_0 | Met Architect 40689 | -1/Access_0 | Architect warped through subspace 40721 | -1/Access_0 | Destroyed A8 40739 | -1/Access_0 | Architect warped through subspace 40743 | -1/Access_0 | Installed Navigation Efficiency Matrix, process failed with unexpected side effects 40769 | -1/Access_0 | Architect warped through subspace 40803 | -1/Access_0 | Architect warped through subspace 40843 | -1/Access_0 | Architect warped through subspace 40891 | -1/Access_0 | Architect warped through subspace 40920 | -1/Access_0 | Architect warped through subspace 40951 | -1/Access_0 | Architect warped through subspace 41000 | -1/Access_0 | Architect warped through subspace 41013 | -1/Access_0 | Core integrity fell below 50% 41060 | -1/Access_0 | Architect warped through subspace 41065 | -1/Access_0 | A6 warped into view 41074 | -1/Access_0 | Destroyed A6 41133 | -1/Access_0 | Architect warped through subspace 41149 | -1/Access_0 | Found Prototype Device 41149 | -1/Access_0 | Identified Desublimator 41190 | -1/Access_0 | Subspace Access Node disabled 41206 | -1/Access_0 | Architect warped through subspace 41229 | -1/Access_0 | Lost 4 parts (2u2w) 41248 | -1/Access_0 | Core integrity fell below 20% 41255 | -1/Access_0 | Found Core Regenerator 41255 | -1/Access_0 | Used Core Regenerator, restored core integrity (+400) 41275 | -1/Access_0 | A5 warped into view 41299 | -1/Access_0 | Architect warped through subspace 41308 | -1/Access_0 | Destroyed A5 41320 | -1/Access_0 | Found Prototype Device 41320 | -1/Access_0 | Identified Exp. Phase Shifter 41345 | -1/Access_0 | Architect warped through subspace 41361 | -1/Access_0 | Found Prototype Device 41361 | -1/Access_0 | Identified Exp. Thermal Shield 41408 | -1/Access_0 | Architect warped through subspace 41422 | -1/Access_0 | Architect warped through subspace 41434 | -1/Access_0 | Lost 6 parts (1p3n2u) 41448 | -1/Access_0 | Core destroyed Last Messages --------------- 41401_ Broken Exp. Biometal Medium Treads destroyed. 41403_ I 41439_ Enh. Flexi-carbon Leg destroyed. 41441_ Reinforced Shell breached. 41441_ Penetrated by Quantum Shear. 41446_ Microwarped (distance 2). 41447_ Microwarped (distance 9). 41448_ Microwarped (distance 44). Map ----- +----------------------------------------------------+ | ????????????????????????????????????? | | ????????????????????????????????????? | | ????????????????????????????????????? | | ????????????????????????????????????? | | ????????????????????????????????????? | | ????????????????????????????????????? | | ????????????????????????????????????? | | ????????????????????????????????????? | | ????????????????????????????????????? | | ????????????????????????????????????? | | ????????????????????????????????????? | | ????????????????????????????????????? | | ????????????????????????????????????? | | ????????????????????????????????????? | | ????????????????????????????????????? | | ????????????????????????????????????? | | ????????????????????????????????????? | | ####????????????????????????????????? | | #????????????????????????????????? | | #????????????????????????????????? | | " ###??????????????????????????????? | | " ######??#######????###?????????? | | " #### ######;#?????????? | | " """#; ; ##????????? | | ] #????????? | | ! @#####?????? | | !! ; #?????? | | ! ! ;;;####?????? | | """""""";; ##????????? | | """""# ; ; ;;#; ;#?????????? | | " """;;;############?????????? | | #" " " ; #????????????????????? | | ## ! ! #????????????????????? | | # !! "" #????????????????????? | | ###" ! "##????????????????????? | | ??# ] #?????????????????????? | | ?# #####?????????????????????? | | ?# "##???????????????????????? | | ?# "" #???????????????????????? | | ##" " #???????????????????????? | | " ##???????????????????????? | | "" #???????????????????????? | | " #" ## #??????????????????????? | | " #####?##??????????????????????? | | ! " ###???????????????????????????? | | " #???????????????????????????? | | ! "# #???????????????????????????? | | "" #???????????????????????????? | | "# #??????????????????????????? | | "# ##????????????????????????? | +----------------------------------------------------+ Best States ------------- Heat Dissipation 121 Coolant Potential 100 Energy Generation 70 Energy Capacity 1675 Matter Stores 403 Matter Capacity 800 Sight Range 24 Robot Scan Range 16 Terrain Scan Range 16 Terrain Scan Density 1010 ECM Strength 3 Additional Mass Support 25 Corruption Prevention 12 Armor Coverage 1800 Resistance: KI 30 Resistance: TH 75 Resistance: EM 75 Core Shielding 40 Power Shielding 66 Propulsion Shielding 33 Utility Shielding 66 Weapon Shielding 66 Point Defense Rating 160 Weapon Cycling 20 Phase Shifting 20 Evasion (%) 75 Targeting Accuracy 36 Launcher Accuracy 30 Target Analysis 15 Armor Integrity Analysis 50 Recoil Reduction 8 Matter Filtering 30 Particle Charging 37 Kinecelleration 50 Offensive Hacking 10 Authchip Count 1 Item Schematics ----------------- None Robot Schematics ------------------ None Fabricated ------------ Mni. Drone Bay | x1 | -5/Factory | Preloaded Alien Tech Used ----------------- Phase Armor Subatomic Replicator Dimensional Node Initializer Transdimensional Reconstructor High-powered Transdimensional Reconstructor Core Reset Matrix Microwarp Drive Core Expander LRC Boosters Matter Drive Supercharged Integrated Reactor Core Physics Calibrator Navigation Efficiency Matrix Core Regenerator Achievements -------------- None Challenges ------------ None Game ------ Seed DecoderInsulatedGravjet Manual? 0 Play Time 12:48:59 Cumulative 548.7 hours Start 2021.12.31 @ 15:10:41 End 2022.01.08 @ 20:42:59 Sessions 7 Manual Loads 0 Difficulty Rogue Special Mode Winter2021/Sauler Game No. 71 Rogue 71 Adventurer 0 Explorer 0 Win Type - Total 28 Types 13/4/1/0/2/1/7/0/0 Lore% 88 Gallery% 93 Achievement% 81 Wizard Run 0 Options --------- ASCII 0 Keyboard 0 Movement Numpad Keybinds 0 Fullscreen 2 Font 18/Terminus Map View 76x50 Tactical HUD 1 Map Filters NONE Filters NONE Steam 1 RUN: 9ccfa365-359d-46a1-9dbc-012a294db956